bitfinex-derivatives/quotes_SOLF0:USTF0_20260217
["timestamp","ask_amount","ask_price","bid_price","bid_amount"]
[1771306599559,10.5309,85.51,85.447,9.085346]
[1771306600060,10.532,85.501,85.447,9.085346]
[1771306603367,10.5334,85.489,85.447,9.085346]
[1771306603569,10.5334,85.489,85.375,166.10908175]
[1771306603570,6.97003748,85.5,85.428,9.06789754]
[1771306604168,10.5333,85.491,85.429,9.05204745]
[1771306604970,10.5333,85.491,85.433,9.05208746]
[1771306605166,10.532,85.501,85.433,9.05208746]
[1771306605661,10.5305,85.513,85.445,9.05489596]
[1771306606268,10.5305,85.513,85.449,9.05489596]
[1771306606465,10.5292,85.524,85.449,9.05489596]
[1771306607074,10.5304,85.514,85.455,9.05492245]
[1771306607371,6.97003748,85.54,85.455,9.05492245]
[1771306607672,10.5281,85.533,85.469,9.05492245]
[1771306607872,6.97003748,85.55,85.469,9.05492245]
[1771306608665,10.5291,85.524,85.469,9.05492245]
[1771306609675,10.5279,85.534,85.471,9.04594608]
[1771306609970,6.97003748,85.55,85.471,9.04594608]
[1771306610972,10.5266,85.544,85.482,9.04597253]
[1771306611366,6.97003748,85.55,85.489,9.04597253]
[1771306611570,10.5255,85.554,85.489,9.04597253]
[1771306611971,10.5255,85.554,85.491,9.041627]
[1771306612470,8.57374836,85.591,85.491,9.041627]
[1771306612471,10.5242,85.564,85.491,9.041627]
[1771306613034,10.5242,85.564,85.503,9.04165353]
[1771306613578,10.5229,85.575,85.506,9.04165353]
[1771306614473,10.5229,85.575,85.509,9.03897032]
[1771306616681,10.5229,85.575,85.484,73.52]
[1771306616682,10.5229,85.575,85.511,9.04206751]
[1771306617582,10.5229,85.575,85.517,9.04206751]
[1771306619477,10.5216,85.586,85.519,9.04565419]
[1771306620488,10.5202,85.597,85.532,9.04373818]
[1771306621488,10.5202,85.597,85.534,9.04376209]
[1771306621789,10.5188,85.608,85.534,9.04376209]
[1771306622284,10.5188,85.608,85.52,6.97003748]
[1771306622285,10.5176,85.618,85.552,9.04336326]
[1771306622883,434.73854355,85.621,85.556,9.04338669]
[1771306623676,434.73854355,85.621,85.559,10.5247]
[1771306623882,434.73854355,85.621,85.56,9.03656662]
[1771306624087,10.5144,85.644,85.561,9.03656662]
[1771306625196,10.5128,85.657,85.582,9.03659044]
[1771306625489,82.92,85.675,85.582,9.03659044]
[1771306625795,6.97003748,85.66,85.582,9.03659044]
[1771306626387,10.514,85.647,85.585,9.06801542]
[1771306626691,6.97003748,85.67,85.585,9.06801542]
[1771306626895,80.49003748,85.67,85.585,9.06801542]
[1771306627594,80.49003748,85.67,85.568,73.52]
[1771306627595,10.5137,85.65,85.589,9.06803452]
[1771306628698,10.5137,85.65,85.592,9.13130464]
[1771306629300,10.5121,85.662,85.595,9.13130464]
[1771306630393,10.5121,85.662,85.598,9.1360507]
[1771306630794,83.3,85.661,85.598,9.1360507]
[1771306630998,10.5126,85.659,85.598,9.1360507]
[1771306632795,83.38,85.662,85.598,9.1360507]
[1771306633100,10.5138,85.649,85.598,9.1360507]
[1771306633295,10.5138,85.649,85.584,19.6432558]
[1771306633597,6.97003748,85.65,85.588,9.1215558]
[1771306633902,75.32,85.649,85.588,9.1215558]
[1771306634300,10.5138,85.649,85.59,9.11469324]
[1771306635701,10.5138,85.649,85.592,9.12177785]
[1771306637901,10.5138,85.649,85.563,73.52]
[1771306637902,10.5124,85.661,85.594,9.12038939]
[1771306638096,83.6,85.66,85.594,9.12038939]
[1771306638805,6.97003748,85.65,85.594,9.12038939]
[1771306639499,10.5142,85.646,85.594,9.12038939]
[1771306639696,83.58,85.645,85.594,9.12038939]
[1771306639905,14.18805866,85.736,85.594,9.12038939]
[1771306639906,83.58,85.655,85.594,9.12038939]
[1771306640409,83.58,85.655,85.597,9.10788884]
[1771306641800,83.58,85.655,85.606,9.09214736]
[1771306642602,11.67,85.733,85.554,21.0507]
[1771306642603,10.5102,85.678,85.618,9.09214736]
[1771306642807,6.97003748,85.69,85.618,9.09214736]
[1771306643101,6.97003748,85.69,85.621,9.09216043]
[1771306643704,83.92,85.685,85.621,9.09216043]
[1771306644407,10.5109,85.673,85.621,9.09216043]
[1771306644611,6.97003748,85.67,85.582,9.09208235]
[1771306644808,84.32,85.669,85.582,9.09208235]
[1771306645208,6.97003748,85.67,85.582,9.09208235]
[1771306645511,84.4,85.668,85.582,9.09208235]
[1771306645709,84.4,85.668,85.61,9.0970468]
[1771306646211,84.52,85.667,85.61,9.0970468]
[1771306646415,84.52,85.672,85.622,9.0970468]
[1771306647115,84.52,85.672,85.59,6.97003748]
[1771306647116,84.56,85.688,85.625,9.09705878]
[1771306647911,84.56,85.688,85.607,9.09001008]
[1771306648208,6.97003748,85.69,85.607,9.09001008]
[1771306648410,84.96,85.685,85.62,10.5172]
[1771306648614,85.04,85.684,85.621,9.09001008]
[1771306649314,6.97003748,85.69,85.621,9.09001008]
[1771306649315,10.5098,85.681,85.621,9.09001008]
[1771306651617,10.5109,85.672,85.621,9.09001008]
[1771306653020,10.5122,85.662,85.601,9.08807528]
[1771306653318,6.97003748,85.67,85.601,9.08807528]
[1771306653517,85.76,85.669,85.601,9.08807528]
[1771306653710,6.97003748,85.65,85.584,9.08807528]
[1771306653909,85.76,85.649,85.584,9.08807528]
[1771306654110,85.76,85.649,85.585,10.5215]
[1771306654316,85.76,85.649,85.586,9.08971243]
[1771306655819,85.76,85.649,85.55,6.97003748]
[1771306655820,85.76,85.649,85.588,8.90192994]
[1771306656016,10.5139,85.648,85.588,8.90192994]
[1771306656213,85.82,85.647,85.588,8.90192994]
[1771306656722,85.82,85.647,85.591,8.90192994]
[1771306657020,10.5142,85.646,85.591,8.90192994]
[1771306657917,10.5142,85.646,85.592,8.90195886]
[1771306660025,85.94,85.645,85.597,8.90097149]
[1771306662125,2.7794605,85.63,85.597,8.90097149]
[1771306662928,2.7794605,85.64,85.597,8.90097149]
[1771306663431,2.7794605,85.64,85.598,8.90045707]
[1771306664724,2.7794605,85.64,85.603,8.8996997]
[1771306665117,86.12,85.653,85.603,8.8996997]
[1771306665429,2.7794605,85.65,85.609,8.8996997]
[1771306666226,2.7794605,85.64,85.609,8.8996997]
[1771306667025,2.7794605,85.65,85.609,8.8996997]
[1771306667224,2.7794605,85.65,85.602,10.5194]
[1771306667429,2.7794605,85.65,85.603,8.8972505]
[1771306670525,2.7794605,85.65,85.605,8.89839514]
[1771306672524,2.7794605,85.64,85.605,8.89839514]
[1771306678227,2.7794605,85.64,85.608,8.88441318]
[1771306679122,2.7794605,85.65,85.608,8.88441318]
[1771306680127,2.7794605,85.65,85.611,8.87283877]
[1771306681022,2.7794605,85.65,85.621,8.87286225]
[1771306681330,2.7794605,85.66,85.621,8.87286225]
[1771306681529,2.7794605,85.64,85.606,8.87286225]
[1771306681932,2.7794605,85.63,85.606,8.87286225]
[1771306682226,2.7794605,85.64,85.606,8.87286225]
[1771306682729,2.7794605,85.62,85.55,2.7794605]
[1771306682934,2.7794605,85.59,85.567,8.86257996]
[1771306684122,2.7794605,85.61,85.567,8.86257996]
[1771306684526,2.7794605,85.6,85.567,8.86257996]
[1771306685830,2.7794605,85.6,85.57,8.88124543]
[1771306686432,6.05e-05,85.6,85.573,19.40424543]
[1771306687633,6.05e-05,85.6,85.573,8.88124543]
[1771306688536,2.7794605,85.61,85.573,8.88124543]
[1771306689942,2.7794605,85.6,85.573,8.88124543]
[1771306694046,10.5168,85.624,85.559,10.5248]
[1771306694047,2.7794605,85.59,85.56,8.85087466]
[1771306695440,2.7794605,85.6,85.564,8.85088736]
[1771306696546,2.7794605,85.61,85.567,8.85119857]
[1771306697145,2.7794605,85.61,85.574,8.85121912]
[1771306698248,2.7794605,85.62,85.574,8.85121912]
[1771306698448,2.7794605,85.62,85.58,8.84120272]
[1771306698851,2.7794605,85.62,85.585,10.5215]
[1771306700050,2.7794605,85.62,85.58,8.84120272]
[1771306700943,2.7794605,85.6,85.58,8.84120272]
[1771306701343,2.7794605,85.61,85.58,8.84120272]
[1771306703545,2.7794605,85.63,85.582,8.80462013]
[1771306703749,10.5154,85.636,85.582,8.80462013]
[1771306703750,2.7794605,85.62,85.582,8.80462013]
[1771306704454,17.88009516,85.654,85.585,8.79796695]
[1771306704748,2.7794605,85.64,85.585,8.79796695]
[1771306705054,2.7794605,85.64,85.591,8.79798847]
[1771306705254,2.7794605,85.65,85.608,8.79798847]
[1771306705455,2.7794605,85.66,85.608,8.79798847]
[1771306705656,2.7794605,85.66,85.611,8.79798847]
[1771306706753,2.7794605,85.66,85.62,8.77016943]
[1771306708351,2.7794605,85.66,85.614,10.518]
[1771306708352,2.7794605,85.63,85.558,8.77155852]
[1771306708650,2.7794605,85.63,85.505,11.44952271]
[1771306708651,2.7794605,85.58,85.543,8.77155852]
[1771306708849,2.7794605,85.57,85.543,8.77155852]
[1771306709055,2.7794605,85.6,85.543,8.77155852]
[1771306709255,2.7794605,85.6,85.512,163.8083]
[1771306709256,2.7794605,85.61,85.551,7.38185013]
[1771306709553,2.7794605,85.62,85.561,7.38185013]
[1771306709853,2.7794605,85.62,85.58,7.38185013]
[1771306711264,2.7794605,85.62,85.581,10.522]
[1771306711464,2.7794605,85.62,85.582,7.46891665]
[1771306712665,2.7794605,85.62,85.584,7.43089878]
[1771306713865,2.7794605,85.63,85.586,7.45595307]
[1771306714066,2.7794605,85.64,85.586,7.45595307]
[1771306714261,2.7794605,85.63,85.586,7.45595307]
[1771306715368,2.7794605,85.64,85.586,7.45595307]
[1771306715671,2.7794605,85.64,85.59,7.45597004]
[1771306715860,2.77925917,85.64,85.59,7.45597004]
[1771306716662,10.5129,85.656,85.592,7.45399315]
[1771306716972,2.77925917,85.64,85.592,7.45399315]
[1771306717661,2.77925917,85.65,85.594,7.45400982]
[1771306720262,2.77925917,85.63,85.594,7.45400982]
[1771306721356,2.77925917,85.64,85.594,7.45400982]
[1771306722961,14.24599827,85.691,85.555,73.54]
[1771306722962,3.93240045,85.709,85.631,3.90605296]
[1771306723164,3.93240045,85.689,85.631,3.90605296]
[1771306723570,6.71165962,85.68,85.631,3.90605296]
[1771306723869,3.93240045,85.669,85.61,6.68531213]
[1771306724065,3.93240045,85.669,85.611,3.9516968]
[1771306724367,3.93240045,85.669,85.63,2.77925917]
[1771306724562,2.77925917,85.69,85.63,2.77925917]
[1771306724563,3.7230248,85.689,85.63,2.77925917]
[1771306724765,3.7230248,85.689,85.64,2.77925917]
[1771306725268,3.7230248,85.689,85.65,2.77925917]
[1771306730561,3.81089697,85.709,85.651,3.93832257]
[1771306730769,3.81089697,85.709,85.66,2.77925917]
[1771306730962,3.81089697,85.709,85.661,3.93832257]
[1771306731778,3.81089697,85.707,85.65,2.77925917]
[1771306732177,3.81089697,85.707,85.651,3.93832257]
[1771306732380,3.81089697,85.707,85.66,2.77925917]
[1771306733675,3.81089697,85.707,85.66,6.71758174]
[1771306735580,3.81089697,85.707,85.661,3.93832257]
[1771306741184,6.59015614,85.72,85.671,3.93832257]
[1771306741489,3.81089697,85.719,85.671,3.93832257]
[1771306742283,3.81089697,85.719,85.66,2.77925917]
[1771306742488,3.81089697,85.719,85.661,3.93832257]
[1771306743394,3.81089697,85.716,85.661,3.93832257]
[1771306744789,10.5063,85.71,85.661,3.93832257]
[1771306745395,3.81089697,85.709,85.661,3.93832257]
[1771306748496,3.81089697,85.709,85.67,6.71758174]
[1771306748896,3.81089697,85.709,85.671,3.93832257]
[1771306749399,10.5045,85.725,85.671,3.93832257]
[1771306749400,3.81089697,85.724,85.671,3.93832257]
[1771306749891,3.81089697,85.721,85.671,3.93832257]
[1771306756201,3.90376454,85.718,85.671,3.93832257]
[1771306757005,10.5043,85.726,85.681,3.80318234]
[1771306758003,14.40806454,85.726,85.681,3.80318234]
[1771306758407,10.5046,85.724,85.681,3.80318234]
[1771306758613,3.90376454,85.725,85.681,3.80318234]
[1771306767011,3.90376454,85.738,85.691,3.80318234]
[1771306767217,3.90376454,85.738,85.7,2.77925917]
[1771306767415,3.90376454,85.738,85.691,3.80318234]
[1771306767620,3.90376454,85.736,85.691,3.80318234]
[1771306768215,3.90376454,85.736,85.701,3.80318234]
[1771306768414,10.5007,85.756,85.701,3.80318234]
[1771306768613,3.90376454,85.755,85.701,3.80318234]
[1771306769818,3.90376454,85.751,85.701,3.80318234]
[1771306772421,3.90376454,85.741,85.688,3.80318234]
[1771306772620,3.90376454,85.741,85.603,11.67]
[1771306772621,3.90376454,85.739,85.68,6.58244151]
[1771306772823,3.90376454,85.739,85.681,3.80318234]
[1771306773824,10.504,85.729,85.681,3.80318234]
[1771306774625,3.90376454,85.738,85.691,3.80318234]
[1771306775918,3.90376454,85.736,85.691,3.80318234]
[1771306776519,10.5036,85.732,85.691,3.80318234]
[1771306777423,3.90376454,85.731,85.681,3.80318234]
[1771306782335,3.90376454,85.726,85.681,3.80318234]
[1771306783734,3.90376454,85.726,85.652,21.75306449]
[1771306783940,35.08,85.757,85.653,3.80318234]
[1771306783941,2.77294149,85.7,85.653,3.80318234]
[1771306784133,4.1051836,85.699,85.653,3.80318234]
[1771306784835,4.1051836,85.699,85.66,2.77294149]
[1771306785042,4.1051836,85.699,85.66,6.52962283]
[1771306787540,4.1051836,85.699,85.661,3.75668134]
[1771306789432,4.1051836,85.699,85.66,2.77294149]
[1771306790242,4.1051836,85.699,85.654,14.5792809]
[1771306791341,4.1051836,85.699,85.66,2.77294149]
[1771306794137,4.1051836,85.699,85.662,4.0661809]
[1771306795647,4.1051836,85.699,85.664,10.5118]
[1771306798542,4.1051836,85.699,85.637,4.0661809]
[1771306798743,4.10391844,85.689,85.64,2.77294149]
[1771306798948,4.10391844,85.689,85.637,4.0661809]
[1771306799644,4.10391844,85.689,85.64,10.5147]
[1771306800250,4.10391844,85.689,85.64,13.28764149]
[1771306801246,4.10391844,85.689,85.59,29.02008007]
[1771306801247,4.10391844,85.703,85.651,4.0661809]
[1771306801444,4.10391844,85.703,85.661,4.0661809]
[1771306802846,4.10391844,85.703,85.663,10.512]
[1771306803045,4.10391844,85.72,85.671,4.0661809]
[1771306803249,4.10391844,85.732,85.69,2.77294149]
[1771306803446,4.10391844,85.732,85.681,4.0661809]
[1771306803945,10.5048,85.723,85.66,10.5123]
[1771306804248,4.10391844,85.709,85.661,4.0661809]
[1771306806046,4.10391844,85.709,85.663,14.5781809]
[1771306806644,4.10391844,85.709,85.666,4.0661809]
[1771306809147,4.10391844,85.726,85.678,4.0661809]
[1771306809347,4.10391844,85.719,85.665,4.0661809]
[1771306809547,4.10391844,85.709,85.665,4.0661809]
[1771306810053,4.10391844,85.699,85.647,10.5139]
[1771306810553,4.10391844,85.699,85.651,4.0661809]
[1771306810948,4.10391844,85.712,85.661,4.0661809]
[1771306811143,4.10391844,85.709,85.661,4.0661809]
[1771306811548,4.10391844,85.699,85.65,2.77294149]
[1771306811749,4.10391844,85.699,85.648,4.0661809]
[1771306812551,4.10391844,85.699,85.65,2.77294149]
[1771306812758,4.10391844,85.699,85.651,4.0661809]
[1771306813556,9.37615989,85.72,85.661,10.5122]
[1771306813760,4.10391844,85.725,85.681,4.0661809]
[1771306814056,4.10391844,85.725,85.67,2.77294149]
[1771306814262,4.11483556,85.709,85.667,4.0661809]
[1771306814858,4.11483556,85.699,85.65,4.17152885]
[1771306815362,4.11483556,85.699,85.65,6.94447034]
[1771306816163,4.11483556,85.699,85.651,4.17152885]
[1771306816358,4.11483556,85.693,85.651,4.17152885]
[1771306816563,2.77294149,85.69,85.651,4.17152885]
[1771306816755,4.11483556,85.693,85.651,4.17152885]
[1771306818156,4.11483556,85.706,85.651,4.17152885]
[1771306818355,4.11483556,85.706,85.661,4.17152885]
[1771306818864,4.11483556,85.699,85.648,4.17152885]
[1771306819164,4.11483556,85.699,85.65,2.77294149]
[1771306819360,4.11483556,85.699,85.651,4.17152885]
[1771306820962,4.11483556,85.699,85.625,73.54]
[1771306820963,4.11483556,85.693,85.632,4.17152885]
[1771306821267,4.11483556,85.693,85.64,2.77294149]
[1771306821461,4.11483556,85.693,85.64,6.94447034]
[1771306822063,4.11483556,85.693,85.641,4.17152885]
[1771306822668,4.11483556,85.691,85.641,4.17152885]
[1771306823966,4.11483556,85.691,85.643,4.17152885]
[1771306824168,2.77294149,85.7,85.651,4.17152885]
[1771306824367,4.11483556,85.704,85.651,4.17152885]
[1771306825265,4.11483556,85.704,85.654,4.17152885]
[1771306825470,4.11483556,85.704,85.661,4.17152885]
[1771306826064,4.11483556,85.713,85.662,4.17152885]
[1771306826670,2.77294149,85.71,85.662,4.17152885]
[1771306826874,4.11483556,85.709,85.662,4.17152885]
[1771306827769,4.11483556,85.709,85.663,10.512]
[1771306829465,4.11483556,85.709,85.663,14.68352885]
[1771306830474,4.11483556,85.709,85.664,3.9298378]
[1771306831568,10.71648724,85.732,85.653,10.5131]
[1771306831569,4.07578364,85.699,85.653,10.5131]
[1771306831872,4.07578364,85.689,85.641,10.5147]
[1771306832064,4.07578364,85.689,85.586,21.0429]
[1771306832065,4.07578364,85.689,85.642,3.9298378]
[1771306832868,4.07578364,85.689,85.64,2.77294149]
[1771306833076,2.77294149,85.67,85.619,3.9298378]
[1771306833875,4.07578364,85.669,85.619,3.9298378]
[1771306834772,8.53112351,85.698,85.619,3.9298378]
[1771306834773,6.84872513,85.66,85.619,3.9298378]
[1771306834977,4.07578364,85.659,85.619,3.9298378]
[1771306838478,2.77769066,85.67,85.621,3.9298378]
[1771306838778,4.07578364,85.674,85.621,3.9298378]
[1771306839170,4.07578364,85.674,85.623,3.9298378]
[1771306839371,4.07578364,85.674,85.631,3.9298378]
[1771306841183,2.77769066,85.68,85.643,3.9298378]
[1771306841488,2.77769066,85.69,85.643,3.9298378]
[1771306842373,2.77769066,85.69,85.583,29.02008007]
[1771306842374,2.77769066,85.7,85.651,3.9298378]
[1771306842571,4.07578364,85.705,85.651,3.9298378]
[1771306843784,4.07578364,85.705,85.655,3.9298378]
[1771306850689,4.07578364,85.705,85.657,3.97273092]
[1771306852292,4.07578364,85.705,85.659,10.5125]
[1771306852493,4.07578364,85.705,85.66,3.97273092]
[1771306853286,4.07578364,85.705,85.662,3.97273092]
[1771306853484,3.88135938,85.728,85.671,3.97273092]
[1771306854794,3.88135938,85.728,85.673,3.97273092]
[1771306855496,2.77769066,85.72,85.673,3.97273092]
[1771306856394,3.88135938,85.728,85.673,3.97273092]
[1771306857694,3.88135938,85.728,85.677,3.97273092]
[1771306859896,3.88135938,85.728,85.68,3.97273092]
[1771306860096,3.88135938,85.738,85.681,3.97273092]
[1771306861091,3.88135938,85.738,85.654,73.54]
[1771306861092,3.88135938,85.738,85.692,3.97273092]
[1771306861292,3.88135938,85.738,85.701,3.97273092]
[1771306862196,3.88135938,85.738,85.703,3.97273092]
[1771306863995,2.77769066,85.75,85.705,3.97273092]
[1771306864600,2.77769066,85.75,85.709,10.5063]
[1771306864806,3.88135938,85.757,85.71,3.97273092]
[1771306866799,3.88135938,85.769,85.713,3.97273092]
[1771306867205,3.88135938,85.769,85.727,14.47683092]
[1771306867405,3.88135938,85.769,85.728,3.97273092]
[1771306868709,35.08,85.806,85.671,163.5049]
[1771306868710,2.77769066,85.79,85.74,2.77769066]
[1771306868900,2.77769066,85.79,85.688,163.4716]
[1771306868901,3.88135938,85.809,85.76,2.77769066]
[1771306869101,3.88135938,85.809,85.761,3.97273092]
[1771306869900,35.08,85.852,85.737,73.52]
[1771306869901,3.88135938,85.822,85.771,3.97273092]
[1771306870401,3.88135938,85.835,85.781,3.97273092]
[1771306871304,3.88135938,85.835,85.787,3.97273092]
[1771306872503,3.88135938,85.835,85.791,3.97273092]
[1771306874516,3.96040221,85.829,85.781,4.18455451]
[1771306874810,2.77769066,85.83,85.783,4.18455451]
[1771306875109,2.77769066,85.84,85.791,4.18455451]
[1771306875501,3.96040221,85.839,85.791,4.18455451]
[1771306876314,2.77769066,85.84,85.791,4.18455451]
[1771306876610,3.96040221,85.852,85.801,4.18455451]
[1771306877008,3.96040221,85.852,85.803,4.18455451]
[1771306879703,3.96040221,85.852,85.811,4.18455451]
[1771306880608,3.96040221,85.869,85.812,4.18455451]
[1771306881011,3.96040221,85.869,85.82,2.77769066]
[1771306881217,2.77769066,85.88,85.822,4.18455451]
[1771306881516,2.77769066,85.88,85.77,163.3162]
[1771306881517,2.77769066,85.88,85.831,4.18455451]
[1771306882211,3.96040221,85.901,85.85,2.77769066]
[1771306882412,3.96040221,85.889,85.837,4.18455451]
[1771306882610,3.96040221,85.879,85.837,4.18455451]
[1771306882815,3.96040221,85.897,85.85,6.96224517]
[1771306883116,3.96040221,85.897,85.851,4.18455451]
[1771306883317,2.77769066,85.91,85.851,4.18455451]
[1771306883515,2.77769066,85.91,85.861,4.18455451]
[1771306883717,3.96040221,85.927,85.871,4.18455451]
[1771306884015,3.96040221,85.919,85.871,4.18455451]
[1771306884512,3.96040221,85.939,85.881,4.18455451]
[1771306885214,3.96040221,85.939,85.895,4.18455451]
[1771306886914,3.96040221,85.939,85.897,4.18455451]
[1771306887119,3.96040221,85.939,85.883,4.18455451]
[1771306887514,3.96040221,85.939,85.868,73.42]
[1771306887515,3.96040221,85.939,85.887,4.18455451]
[1771306887815,3.96040221,85.976,85.887,4.18455451]
[1771306888218,3.96040221,85.976,85.903,10.4826]
[1771306888613,3.96040221,85.976,85.904,4.18455451]
[1771306888811,3.96040221,85.974,85.89,10.4842]
[1771306889014,3.96040221,85.959,85.891,4.18455451]
[1771306889416,3.96040221,85.959,85.893,10.4838]
[1771306889620,3.96040221,85.959,85.894,4.18455451]
[1771306891113,3.96040221,85.979,85.903,4.18455451]
[1771306891621,3.96040221,85.979,85.889,4.18455451]
[1771306892717,3.96040221,85.976,85.893,4.18455451]
[1771306893219,3.96040221,85.959,85.893,4.18455451]
[1771306894012,3.96040221,85.959,85.895,4.18455451]
[1771306894213,3.96040221,85.973,85.895,4.18455451]
[1771306894414,3.96040221,85.969,85.895,4.18455451]
[1771306894610,3.96040221,85.966,85.899,4.18455451]
[1771306895120,3.96040221,85.966,85.859,163.146]
[1771306895121,3.96040221,86.003,85.931,4.18455451]
[1771306895416,162.7708,86.058,85.931,4.18455451]
[1771306895417,3.96040221,86.028,85.931,4.18455451]
[1771306895622,3.96040221,86.028,85.933,4.18455451]
[1771306896017,3.96040221,86.028,85.975,4.18455451]
[1771306897423,3.96040221,86.043,85.957,4.18455451]
[1771306897725,3.96040221,86.029,85.957,4.18455451]
[1771306897924,3.96040221,86.022,85.952,10.4766]
[1771306898327,3.96040221,86.022,85.953,4.18455451]
[1771306899825,3.96040221,86.022,85.958,10.4759]
[1771306900020,3.96040221,86.022,85.959,4.18455451]
[1771306900724,73.34,86.032,85.975,4.18455451]
[1771306900925,73.34,86.032,85.916,163.0389]
[1771306900926,3.96040221,86.029,85.96,4.18455451]
[1771306902124,3.96040221,86.029,85.962,10.4755]
[1771306902825,3.96040221,86.023,85.96,4.18455451]
[1771306903725,3.96040221,86.019,85.96,14.66015451]
[1771306904331,4.02294754,86.013,85.96,4.18455451]
[1771306904527,80.20748741,86.03,85.945,3.84514373]
[1771306904528,4.02294754,86.009,85.945,3.84514373]
[1771306905325,4.02294754,86.008,85.945,3.84514373]
[1771306906828,4.02294754,86.008,85.914,73.32]
[1771306906829,4.02294754,86.008,85.947,3.84514373]
[1771306907434,4.02294754,86.029,85.963,3.84514373]
[1771306907827,4.02294754,86.048,85.971,3.84514373]
[1771306908033,4.02294754,86.048,85.97,6.88748741]
[1771306908034,4.02294754,86.079,86.023,3.84514373]
[1771306908729,4.02294754,86.079,86.025,3.84514373]
[1771306909139,4.02294754,86.079,86.008,73.3]
[1771306909433,4.02294754,86.079,86.009,3.84514373]
[1771306910332,4.02294754,86.079,86.014,3.79317637]
[1771306911130,4.18937144,86.089,86.027,3.79317637]
[1771306911434,4.18937144,86.089,86.01,3.79317637]
[1771306912729,4.18937144,86.086,86.0,3.79317637]
[1771306913437,4.18937144,86.086,85.99,6.88748741]
[1771306913438,4.18937144,86.086,86.002,3.79317637]
[1771306913832,4.18937144,86.075,86.005,3.79317637]
[1771306914237,4.18937144,86.075,86.001,73.28]
[1771306914238,4.18937144,86.072,86.009,3.79317637]
[1771306915538,4.18937144,86.072,86.011,3.79317637]
[1771306917336,14.65177144,86.07,86.011,3.79317637]
[1771306917927,4.18937144,86.07,86.013,3.79317637]
[1771306919036,4.18937144,86.057,85.995,3.79317637]
[1771306919835,14.65327144,86.057,85.999,3.79317637]
[1771306920142,4.18937144,86.056,85.99,10.68066378]
[1771306920441,4.18937144,86.054,85.99,3.79317637]
[1771306920637,4.18937144,86.054,85.991,3.79317637]
[1771306921044,4.18937144,86.054,86.003,3.79317637]
[1771306921339,4.18937144,86.071,86.003,3.79317637]
[1771306921545,4.18937144,86.086,86.011,3.79317637]
[1771306922440,4.18937144,86.086,86.025,3.79317637]
[1771306922638,4.18937144,86.086,86.01,6.88748741]
[1771306922639,18.53904147,86.09,86.031,3.79317637]
[1771306922840,18.53904147,86.09,86.033,3.79317637]
[1771306923042,18.53904147,86.09,86.039,3.79317637]
[1771306923538,4.18937144,86.089,86.039,3.79317637]
[1771306925246,18.53904147,86.09,86.042,3.79317637]
[1771306926243,18.53904147,86.09,86.044,10.4654]
[1771306926449,18.53904147,86.09,86.045,3.79317637]
[1771306927041,18.53904147,86.09,86.048,14.25807637]
[1771306927543,10.4565,86.118,86.052,3.79317637]
[1771306927747,8.92459865,86.117,86.052,3.79317637]
[1771306928538,8.92295302,86.115,86.054,10.4642]
[1771306928839,8.92295302,86.115,86.03,6.88748741]
[1771306929145,8.92295302,86.115,86.03,80.10748741]
[1771306929646,8.92472774,86.109,86.042,10.4656]
[1771306930337,10.4579,86.107,86.042,10.4656]
[1771306930542,8.91750932,86.106,86.042,10.4656]
[1771306933844,8.91873278,86.103,86.042,10.4656]
[1771306934650,8.98373777,86.101,86.042,10.4656]
[1771306935444,8.98373777,86.101,86.051,10.4645]
[1771306935853,8.98373777,86.101,86.06,2.74873928]
[1771306936453,8.98373777,86.101,86.051,10.4645]
[1771306936751,8.98373777,86.101,86.06,2.74873928]
[1771306937553,8.98373777,86.101,86.051,10.4645]
[1771306937754,8.98373777,86.101,86.06,2.74873928]
[1771306940466,8.98373777,86.101,86.07,2.74873928]
[1771306941956,8.98373777,86.101,86.06,10.4635]
[1771306942159,8.97084498,86.122,86.06,10.4635]
[1771306942555,8.97084498,86.122,86.069,10.4624]
[1771306943464,10.4567,86.116,86.056,10.4639]
[1771306943661,8.97008299,86.115,86.056,10.4639]
[1771306943868,8.97008299,86.115,86.03,6.87061954]
[1771306944669,8.96138054,86.111,86.046,10.4651]
[1771306945471,8.96138054,86.111,86.054,10.4642]
[1771306945866,8.96138054,86.111,86.03,6.87061954]
[1771306946660,8.95114817,86.103,86.052,10.4644]
[1771306948864,6.87061954,86.13,86.041,10.4657]
[1771306948865,8.93782441,86.099,86.041,10.4657]
[1771306949477,10.4587,86.1,85.994,422.72253116]
[1771306949478,8.93713095,86.097,86.01,6.87061954]
[1771306949775,8.93713095,86.095,86.01,6.87061954]
[1771306949976,8.93609451,86.086,85.998,73.2]
[1771306950170,8.93609451,86.086,86.01,6.87061954]
[1771306950567,8.93609451,86.086,86.011,73.2]
[1771306950975,8.93609451,86.086,86.012,73.2]
[1771306951774,8.9354171,86.084,86.029,10.4672]
[1771306952481,8.46241357,86.098,86.029,10.4672]